Cogmind - Beta 9.6 @@@ ROGUE MODE // 2020.08.28 @ 00:09:17 Player: Magellan Result: Self-destructed Performance ------------- Evolutions (1) 500 Regions Visited (2) 400 Robots Destroyed (11) 55 Value Destroyed (310) 310 Prototype IDs (0) 0 Alien Tech Used (0) 0 Bonus (0) 0 TOTAL SCORE: 1265 Bonus ------- None Cogmind --------- Core Integrity 400/400 Matter 364/500 Energy 250/250 System Corruption 0% Temperature Cool (0) Movement Core (1000) Ox19 Location -9/Materials Parts ------- > --- POWER (1) -------- Ion Engine > --- PROPULSION (2) --- (None) > --- UTILITY (4) ------ Large Storage Unit High-capacity Storage Unit High-capacity Matter Pod > --- WEAPON (2) ------- Medium Laser > --- INVENTORY (18) --- Ion Engine Large Storage Unit Peak State ------------ > --- POWER ------------ Ion Engine > --- PROPULSION ------- Light Treads Light Treads > --- UTILITY ---------- Large Storage Unit Large Storage Unit > --- WEAPON ----------- Light Assault Rifle Light Assault Rifle > --- INVENTORY -------- Ion Engine Ion Engine High-capacity Matter Pod Medium Laser [Rating: 7] Favorites ----------- Power Ion Engine Engine Ion Engine Propulsion Light Treads Treads Light Treads Utility Large Storage Unit Storage Large Storage Unit Weapon Light Assault Rifle Energy Gun Medium Laser Ballistic Gun Light Assault Rifle Build | -11 -10 -9 ------- Run | Scr Mat Mat Slots Evolved 2 | . . 2 Power . | . . . Propulsion . | . . . Utility 2 | . . 2 Weapon . | . . . Parts Attached 18 | 6 11 1 Power 2 | . 2 . Engine 2 | . 2 . Core . | . . . Reactor . | . . . Propulsion 5 | 2 3 . Treads 5 | 2 3 . Leg . | . . . Wheel . | . . . Hover . | . . . Flight . | . . . Utility 5 | 1 3 1 Device . | . . . Storage 5 | 1 3 1 Processor . | . . . Hackware . | . . . Protection . | . . . Artifact . | . . . Weapon 6 | 3 3 . Energy Gun 2 | 1 1 . Energy Cannon . | . . . Ballistic Gun 4 | 2 2 . Ballistic Cannon . | . . . Launcher . | . . . Special Weapon . | . . . Impact Weapon . | . . . Slashing Weapon . | . . . Piercing Weapon . | . . . Special Melee Weapon . | . . . Unidentified Prototypes . | . . . Parts Lost 5 | . 4 1 Power 1 | . 1 . Propulsion 2 | . 1 1 Utility . | . . . Weapon 2 | . 2 . Highest Loss Streak 4 | . 4 1 Average Slot Usage (%) 86 | . 89 66 Engine 11 | . 11 11 Treads 23 | . 25 11 Storage 26 | . 26 33 Energy Gun 2 | . . 11 Ballistic Gun 21 | . 24 . Naked Turns . | . . . Heaviest Build 59 | 7 55 59 Greatest Support 40 | 40 40 20 Greatest Overweight (x) 12 | 1 12 2 Average Overweight (x) . | . . 2 Largest Inventory Capacity 18 | 6 18 18 Average Capacity 14 | 5 15 18 Most Carried 6 | 5 6 2 Average Carried 3 | 2 4 2 Final Capacity 18 | 6 18 18 Final Carried 3 | 3 3 2 Class Distribution -------------------- 100% | Mutant Dominant Class ---------------- Mutant | -10/Materials Mutant | -9/Materials Resources | -11 -10 -9 ----------- Run | Scr Mat Mat Matter Collected 507 | 237 270 . Remotely . | . . . Salvage Created 356 | . 356 . Parts 22 | . 22 . Haulers Intercepted . | . . . Recyclers Shooed 2 | . 2 . Parts Field Recycled . | . . . Retrieved Matter . | . . . Parts Self-Destructed . | . . . Prevented . | . . . Kills | -11 -10 -9 ------- Run | Scr Mat Mat Combat Hostiles Destroyed 10 | . 10 . Guns 10 | . 10 . Classes Destroyed 3 | . 3 . Watcher 1 | . 1 . Swarmer 3 | . 3 . Grunt 7 | . 7 . Best Kill Streak 3 | . 3 . Combat Bots Only 3 | . 3 . Max Kills in Single Turn 2 | . 2 . Gunslinging 1 | . 1 . Exploded . | . . . Melee . | . . . Uniques/NPCs Destroyed . | . . . Combat | -11 -10 -9 -------- Run | Scr Mat Mat Damage Taken 554 | . 500 54 Core 73 | . 73 . Absorbed by Shields . | . . . Core Remaining (%) 85 | 100 70 . Volleys Fired 52 | . 52 . Largest 2 | . 2 . Hottest 50 | . 50 . Shots Fired 91 | . 91 . Gun 91 | . 91 . Cannon . | . . . Launcher . | . . . Special . | . . . Kinetic 88 | . 88 . Thermal 3 | . 3 . Explosive . | . . . Electromagnetic . | . . . Robot Hit Streak 10 | . 10 . Robot Miss Streak 3 | . 3 . Penetration Max . | . . . Secondary Targets 3 | . 3 . Max Gunslinging Chain 1 | . 1 . Shots Hit Robots 65 | . 65 . Core Hits 25 | . 25 . Critical Hits . | . . . Critical Kills . | . . . Critical Parts Destroyed . | . . . Melee Attacks . | . . . Impact . | . . . Slashing . | . . . Piercing . | . . . Sneak Attacks . | . . . Combat Hostiles . | . . . Follow-up Attacks . | . . . Damage Inflicted 536 | . 536 . Guns 536 | . 536 . Cannons . | . . . Explosions . | . . . Melee . | . . . Ramming . | . . . Kinetic 511 | . 511 . Thermal 25 | . 25 . Explosive . | . . . Electromagnetic . | . . . Impact . | . . . Slashing . | . . . Piercing . | . . . Highest Corruption . | . . . Average Corruption . | . . . Corruption Purged . | . . . Overload Shots . | . . . Overflow Damage . | . . . Projectiles . | . . . Explosions . | . . . Melee . | . . . Knockbacks . | . . . Impact . | . . . Kinetic . | . . . Secondary . | . . . Self-Inflicted Damage . | . . . Shots . | . . . Rammed . | . . . Targets Rammed . | . . . Kicked . | . . . Crushed . | . . . Highest Temperature 48 | . 48 . Average Temperature 10 | . 10 . Received Heat Transfer 192 | . 192 . Siege Activations . | . . . Robots Corrupted . | . . . Combat Hostiles . | . . . Parts Fried . | . . . Impact Corruptions . | . . . Robots Melted . | . . . Combat Hostiles . | . . . Parts Melted . | . . . Heat Transferred 74 | . 74 . Parts Sabotaged . | . . . Parts Stolen . | . . . Parts Stripped . | . . . Power Chain Reactions . | . . . Missiles Intercepted . | . . . Alert | -11 -10 -9 ------- Run | Scr Mat Mat Peak Influence 227 | . 227 27 Average Influence 73 | . 91 18 Maximum Alert Level 1 | . 1 . Low Security (%) 85 | 100 80 100 Level 1 14 | . 19 . Level 2 . | . . . Level 3 . | . . . Level 4 . | . . . Level 5 . | . . . High Security . | . . . Max Security . | . . . Squads Dispatched 2 | . 2 . Investigation 1 | . 1 . Extermination . | . . . Reinforcement 1 | . 1 . Assault . | . . . Garrison . | . . . Intercept . | . . . Construction Impeded . | . . . Haulers Reinforced . | . . . Stealth | -11 -10 -9 --------- Run | Scr Mat Mat Distress Signals 1 | . 1 . Communications Jammed . | . . . Distress Signals . | . . . Times Spotted 20 | . 13 7 Peak Tracking Total 7 | . 3 7 Tactical Retreats . | . . . Traps | -11 -10 -9 ------- Run | Scr Mat Mat Traps Triggered 2 | . 2 . Indirectly . | . . . Trap Hack Attempts . | . . . Triggered . | . . . Disarmed . | . . . Reprogrammed . | . . . Reused . | . . . Traps Extracted . | . . . Installed . | . . . Triggered . | . . . Machines | -11 -10 -9 ---------- Run | Scr Mat Mat Machines Disabled . | . . . Max in Single Turn . | . . . Machines Sabotaged . | . . . Garrisons Compromised . | . . . Overloaded Fab Kills . | . . . Fab Network Shutdowns . | . . . Hacking | -11 -10 -9 --------- Run | Scr Mat Mat Machines Accessed 3 | . 3 . Terminals 3 | . 3 . Fabricators . | . . . Repair Stations . | . . . Recycling Units . | . . . Scanalyzers . | . . . Garrison Access . | . . . Total Hacks 8 | . 8 . Successful 4 | . 4 . Failed 4 | . 4 . Catastrophic 1 | . 1 . Database Lockouts . | . . . Manual 7 | . 7 . Terminals 8 | . 8 . Fabricators . | . . . Repair Stations . | . . . Recycling Units . | . . . Scanalyzers . | . . . Garrison Access . | . . . Terminal Hacks 2 | . 2 . Unreport Threat 1 | . 1 . Zone Layout 1 | . 1 . Fabricator Hacks . | . . . Repair Station Hacks . | . . . Recycling Unit Hacks . | . . . Scanalyzer . | . . . Garrison Access Hacks . | . . . Unauthorized Hacks 2 | . 2 . Terminals 2 | . 2 . Botnet 2 | . 2 . Fabricators . | . . . Repair Stations . | . . . Recycling Units . | . . . Scanalyzers . | . . . Garrison Access . | . . . Data Cores Recovered . | . . . Used . | . . . Hacking Detections 3 | . 3 . Full Trace Events 1 | . 1 . Feedback Events . | . . . Feedback Blocked . | . . . Robot Schematics Acquired . | . . . Robots Built . | . . . Matter . | . . . Time . | . . . Total Robot Build Rating . | . . . Part Schematics Acquired . | . . . Parts Built . | . . . Matter . | . . . Time . | . . . Total Part Build Rating . | . . . Parts Repaired . | . . . Time . | . . . Parts Recycled . | . . . Recycled Matter . | . . . Retrieved Matter . | . . . Retrieved Components . | . . . Parts Scanalyzed . | . . . Part Schematics Acquired . | . . . Parts Damaged . | . . . Bothacking | -11 -10 -9 ------------ Run | Scr Mat Mat Used RIF Installer . | . . . Robots Hacked . | . . . Non-combat . | . . . Combat . | . . . Robot Hacks Applied . | . . . Relay Couplers Released . | . . . Robots Rewired . | . . . Allies Hacked . | . . . Hacks Repelled . | . . . Allies | -11 -10 -9 -------- Run | Scr Mat Mat Total Allies . | . . . Largest Group . | . . . Highest-Rated Group . | . . . Highest-Rated Ally . | . . . Total Orders . | . . . Ally Attacks . | . . . Total Damage . | . . . Kills . | . . . Allies Corrupted . | . . . Allies Melted . | . . . Intel | -11 -10 -9 ------- Run | Scr Mat Mat Robot Analysis Total . | . . . Derelict Logs Recovered . | . . . Drone Launches . | . . . Drone Recoveries . | . . . Exploration | -11 -10 -9 ------------- Run | Scr Mat Mat Turns Passed 714 | 68 553 93 Spaces Moved 310 | 42 222 46 Core 21 | 20 1 . Treads 289 | 22 221 46 Legs . | . . . Wheels . | . . . Hover . | . . . Flight . | . . . Fastest Speed 50 | 50 160 200 Average Speed 171 | 129 173 200 Slowest Speed 650 | 160 650 200 Overloaded Moves . | . . . Propulsion Burnouts . | . . . Robots Hopped . | . . . Cave-ins Triggered . | . . . Exploration Rate (%) 18 | 4 44 7 Regions Visited 2 Branch Regions . Pre-discovered Areas . | . . . Known Exits Taken . | . . . Unknown Exits Taken 2 | 1 1 . Scrap Searched . | . . . Spaces Dug . | . . . Terrain Destroyed . | . . . Melee . | . . . Projectile . | . . . AOE . | . . . Actions | -11 -10 -9 --------- Run | Scr Mat Mat Total 417 | 55 315 47 Wait 21 | . 21 . Move 308 | 41 221 46 Hop . | . . . Pick Up 17 | 8 9 . Fast Attach 1 | . 1 . Attach 14 | 5 8 1 Detach . | . . . Swap 3 | 1 2 . Drop 1 | . 1 . Fire 52 | . 52 . Melee . | . . . Ram . | . . . Kick . | . . . Crush . | . . . Escape Stasis . | . . . Rewire . | . . . Trap . | . . . Miscellaneous . | . . . Route ------- -11/Scrapyard -10/Materials -9/Materials History --------- Turn | Location | Event 7 | -11/Scrapyard | Discovered new exit (range 16) 69 | -11/Scrapyard | Entered Materials 302 | -10/Materials | Build established: Mutant 331 | -10/Materials | Discovered new exit (range 16) 622 | -10/Materials | Entered another Materials area 622 | -9/Materials | Evolved 2 slots: Utility x2 629 | -9/Materials | Lost 4 parts (1p1n2w) 715 | -9/Materials | Self-destructed Last Messages --------------- Awaiting botnet instructions. >>Layout(Zone) Retrieving Zone 8C layout... Downloaded map data. Connecting with Terminal... ALERT: Suspicious activity at Terminal M004. Dispatching Investigation squad. Ion Engine destroyed. G-34 Mercenary destroyed. Lgt. Assault Rifle destroyed. Lgt. Treads destroyed. G-34 Mercenary destroyed. Acquired 43 matter. Acquired 42 matter. K-01 Serf collects debris. PARAMETERS=UTILITY_2 LOCATION=UNKNOWN GOAL=ESCAPE K-01 Serf collects debris. Lgt. Treads destroyed. Map ----- +----------------------------------------------------+ | | | ?????????????????????????????????????????? | | ?????????????????????????????????????????? | | ?????????????????????????????????????????? | | ?????????????????????????????????????????? | | ?????????????????????????????????????????? | | ?????????????????????????????????????????? | | ?????????????????????????????????????????? | | ?????????????????????????????????????????? | | ?????????????????????????????????????????? | | ?????????????????????????????????????????? | | ?????????????????????????????????????????? | | ?????????????????????????????????????????? | | ?????????????????????????????????????????? | | ?????????????????????????+???????????????? | | ???????????????????????## #??????????????? | | ???????????????????????# ??????????????? | | ???????????????????????# ??????????????? | | ???????????????????????# #??????????????? | | ???????????????????????# #??????????????? | | ???????????? #######+## #??????????????? | | ????????????? k #??????????????? | | ????????????????Y sss +??????????????? | | ??????????????????#s T #??????????????? | | ??????????????????# #??????????????? | | ??????????????????# @#??????????????? | | ??????????????????# #??????????????? | | ??????????????????# """ #??????????????? | | ??????????????????# """ ########???????? | | ??????????????????# """ # #???????? | | ??????????????????# + #???????? | | ??????????????????# # """ #???????? | | ??????????????????# ### # """ #???????? | | ??????????????????# #??# #? """ #???????? | | ????????????????###+#### #? #???????? | | ????????????????# + #??#####???????? | | ????????????????+ #w #??????????????? | | ????????????????# # #??????????????? | | ????????????????# ?# #??????????????? | | ????????????????# ?# #??????????????? | | ????????????????# ??# #??????????????? | | ????????????????#####??# #??????????????? | | ???????????????????????# #??????????????? | | ???????????????????????# #??????????????? | | ???????################# ####???????????? | | ???????# #???????????? | | ???????# #???????????? | | ???????# #???????????? | | ???????# #######+###########???????????? | | ?????????????# #????????????????????? | +----------------------------------------------------+ Best States ------------- Heat Dissipation 28 Energy Generation 10 Energy Capacity 250 Matter Stores 359 Matter Capacity 500 Sight Range 16 Terrain Scan Density 10 Evasion (%) 40 Recoil Reduction 2 Item Schematics ----------------- None Robot Schematics ------------------ None Fabricated ------------ Nothing Alien Tech Used ----------------- None Achievements -------------- None Challenges ------------ None Game ------ Seed BladeProcessingBeam Manual? 0 Play Time 00:06:17 Cumulative 32.7 hours Start 2020.08.28 @ 00:01:47 End 2020.08.28 @ 00:09:17 Sessions 1 Manual Loads 0 Difficulty Rogue Special Mode None Game No. 21 Rogue 1 Adventurer 6 Explorer 14 Win Type - Total 2 Types 2/0/0/0/0/0/0 Lore% 34 Gallery% 50 Achievement% 43 Wizard Run 0 Options --------- ASCII 0 Keyboard 0 Movement Mouse Keybinds 0 Fullscreen 2 Font 24/Smallcaps Map View 76x50 Tactical HUD 0 Map Filters NONE Filters NONE Steam 1 RUN: 2e8c5917-5c60-46f3-8bde-1d7232cda342